bitfinex/quotes_ETHUSD_20250424
["timestamp","ask_amount","ask_price","bid_price","bid_amount"]
[1745519053988,0.2,1761.3,1761.2,3.7538]
[1745519056395,0.2,1761.4,1761.3,3.0]
[1745519056936,0.2,1761.5,1761.3,9.74732103]
[1745519057134,0.2,1761.5,1761.4,10.84430214]
[1745519058819,0.2,1761.6,1761.5,8.67697984]
[1745519059324,0.2,1761.7,1761.5,17.08665946]
[1745519059850,0.2,1761.7,1761.6,5.67665758]
[1745519060487,0.2,1761.6,1761.5,5.7329282]
[1745519060691,0.2,1761.6,1761.5,3.7808]
[1745519061126,0.2,1761.6,1761.5,3.0]
[1745519063531,5.87665758,1761.6,1761.5,3.0]
[1745519064433,0.2,1761.6,1761.5,3.0]
[1745519067944,5.87665758,1761.6,1761.4,5.167]
[1745519068124,6.4646456,1761.5,1761.4,5.167]
[1745519076419,0.2,1761.1,1761.0,10.07463585]
[1745519076621,0.2,1761.1,1761.0,7.07463585]
[1745519076816,5.87826926,1761.1,1761.0,5.165]
[1745519077020,7.03390562,1761.1,1761.0,5.165]
[1745519077253,5.87826926,1761.1,1761.0,5.165]
[1745519078622,0.2,1761.1,1761.0,5.165]
[1745519079911,5.87826926,1761.1,1761.0,5.165]
[1745519080117,0.2,1761.1,1761.0,5.165]
[1745519082869,5.87826926,1761.1,1761.0,5.165]
[1745519083215,0.2,1761.1,1761.0,5.165]
[1745519083651,5.87826926,1761.1,1761.0,5.165]
[1745519084166,0.2,1761.6,1761.4,6.43890214]
[1745519084360,0.2,1761.6,1761.5,14.97728142]
[1745519084544,0.2,1761.7,1761.5,14.92051569]
[1745519084715,0.2,1761.7,1761.6,1.07853585]
[1745519085863,0.2,1761.8,1761.6,6.75507397]
[1745519086016,0.2,1761.7,1761.6,6.75507397]
[1745519086217,0.2,1761.7,1761.6,1.07853585]
[1745519087217,0.2,1761.7,1761.6,6.75519343]
[1745519087425,0.2,1761.7,1761.6,1.07853585]
[1745519087637,0.2,1761.7,1761.6,6.75519343]
[1745519087863,0.2,1761.7,1761.6,1.07853585]
[1745519089265,0.2,1761.7,1761.5,9.24353585]
[1745519089466,0.2,1761.7,1761.5,14.9204456]
[1745519089765,0.2,1761.6,1761.5,14.9204456]
[1745519091375,0.2,1761.6,1761.5,11.37944872]
[1745519093151,0.2,1761.6,1761.5,17.05642856]
[1745519093977,0.2,1761.6,1761.5,11.37944872]
[1745519095379,0.2,1761.7,1761.5,22.73310843]
[1745519095584,0.2,1761.6,1761.5,17.05623456]
[1745519096991,0.2,1761.6,1761.5,10.30091287]
[1745519097291,5.87665758,1761.6,1761.5,5.165]
[1745519097539,0.2,1761.3,1761.2,8.161]
[1745519097725,5.87762448,1761.3,1761.2,5.161]
[1745519099195,0.2,1761.0,1760.8,8.67903101]
[1745519099386,0.2,1761.0,1760.9,9.23953585]
[1745519099582,5.8785917,1761.0,1760.9,5.161]
[1745519099898,5.8785917,1761.0,1760.4,5.68038676]
[1745519099899,0.2,1760.7,1760.4,5.68038676]
[1745519100096,0.2,1760.7,1760.5,6.23953585]
[1745519100301,0.2,1760.6,1760.5,6.23953585]
[1745519100500,0.2,1760.6,1760.5,9.23953585]
[1745519100790,0.2,1760.6,1760.5,6.23953585]
[1745519101096,0.2,1760.6,1760.5,14.91974033]
[1745519101296,0.2,1760.8,1760.6,8.67971104]
[1745519101501,0.2,1760.7,1760.6,8.67971104]
[1745519101720,6.4942546,1761.1,1760.6,8.67971104]
[1745519101721,0.2,1760.8,1760.6,8.67969984]
[1745519101898,0.2,1760.7,1760.6,9.49189984]
[1745519102090,0.2,1760.7,1760.6,3.8122]
[1745519102619,0.2,1760.7,1760.6,10.5706177]
[1745519102829,0.2,1760.8,1760.6,10.57039144]
[1745519103027,0.2,1760.8,1760.7,5.67955926]
[1745519103834,0.2,1760.8,1760.6,10.57057068]
[1745519103989,0.2,1760.7,1760.6,10.57057068]
[1745519104404,0.2,1760.9,1760.7,5.67955926]
[1745519104700,0.2,1760.9,1760.8,1.07853585]
[1745519104924,0.2,1760.9,1760.8,9.75777256]
[1745519105148,0.2,1761.0,1760.8,9.75777256]
[1745519105333,0.2,1760.9,1760.8,9.75777256]
[1745519105528,0.2,1760.9,1760.8,14.91977256]
[1745519105733,0.2,1760.9,1760.8,14.91967721]
[1745519105931,0.2,1761.0,1760.8,16.97958397]
[1745519106238,0.2,1761.3,1761.1,5.67826926]
[1745519106409,0.2,1761.3,1761.2,5.162]
[1745519106608,5.87762448,1761.3,1761.2,5.162]
[1745519106908,7.03313484,1761.3,1761.2,5.162]
[1745519107434,7.83333484,1761.3,1761.2,5.162]
[1745519109411,7.83333484,1761.3,1760.8,6.75775555]
[1745519109412,0.2,1760.5,1760.3,6.75918534]
[1745519109644,0.2,1760.5,1760.4,8.162]
[1745519109844,0.2,1760.5,1760.4,15.33464542]
[1745519110214,0.2,1760.5,1760.4,9.65411827]
[1745519110423,0.2,1760.5,1760.4,15.33464542]
[1745519112045,0.2,1760.6,1760.5,8.68020448]
[1745519112248,0.2,1760.6,1760.5,9.75874033]
[1745519112985,0.2,1760.6,1760.5,4.07853585]
[1745519114380,0.2,1760.6,1760.5,9.75874033]
[1745519114586,0.2,1760.7,1760.5,12.04776889]
[1745519114746,0.2,1761.0,1760.8,3.0]
[1745519115083,0.2,1761.0,1760.9,5.163]
[1745519115241,0.2,1761.0,1760.9,10.84191419]
[1745519115443,0.2,1761.0,1760.9,12.90186781]
[1745519115645,0.2,1761.0,1760.9,7.22295362]
[1745519116058,0.2,1761.0,1760.9,5.163]
[1745519116889,0.2,1761.0,1760.9,10.84191419]
[1745519117064,0.2,1761.1,1760.9,11.92061287]
[1745519117262,0.2,1761.0,1760.9,9.24169868]
[1745519117649,0.2,1761.0,1760.9,8.163]
[1745519117878,5.8785917,1761.0,1760.9,8.163]
[1745519118083,0.2,1761.0,1760.9,8.163]
[1745519118684,5.8785917,1761.0,1760.9,8.163]
[1745519118890,0.2,1761.0,1760.9,8.163]
[1745519119381,5.8785917,1761.0,1760.9,8.163]
[1745519119984,0.2,1760.8,1760.7,3.0]
[1745519120289,0.2,1760.8,1760.7,8.163]
[1745519121105,0.2,1760.8,1758.5,12.91063501]
[1745519121106,0.29408873,1758.7,1758.5,12.91063501]
[1745519121406,0.2,1758.1,1758.0,14.04980869]
[1745519121551,0.2,1758.3,1758.0,14.04980869]
[1745519121749,0.29408873,1758.7,1758.0,15.12886924]
[1745519121946,0.49408873,1758.7,1758.2,0.7664]
[1745519122186,0.29408873,1758.7,1758.3,8.72404434]
[1745519122392,0.29408873,1758.7,1758.6,1.07906055]
[1745519122564,0.29408873,1758.7,1758.6,4.17707589]
[1745519122763,0.29408873,1758.7,1758.6,4.98187589]
[1745519122963,0.29408873,1758.7,1758.6,13.65287589]
[1745519123153,0.29408873,1758.7,1758.6,9.51696612]
[1745519123490,0.29408873,1758.7,1758.6,6.4758]
[1745519123845,0.29408873,1758.7,1758.6,9.4758]
[1745519124153,0.29408873,1758.7,1758.3,0.8072]
[1745519124358,0.2,1758.6,1758.4,22.711]
[1745519124586,0.2,1758.6,1758.5,3.0]
[1745519125355,0.2,1758.6,1758.5,25.711]
[1745519126693,0.49408873,1758.7,1758.6,3.0]
[1745519127203,0.29408873,1758.7,1758.6,8.6863414]
[1745519127502,0.2,1759.1,1758.7,5.68586071]
[1745519127654,0.2,1759.0,1758.8,3.0]
[1745519128387,0.2,1759.0,1758.7,3.0]
[1745519128689,0.2,1758.9,1758.8,8.674]
[1745519129958,0.2,1758.9,1758.8,3.0]
[1745519130166,0.2,1759.1,1758.8,8.974]
[1745519130486,5.68423376,1759.3,1758.8,8.974]
[1745519130487,0.2,1759.0,1758.8,8.974]
[1745519130792,0.2,1758.9,1758.8,8.974]
[1745519132906,0.2,1758.9,1758.8,14.65969479]
[1745519133097,0.2,1759.0,1758.8,14.65969479]
[1745519133295,0.2,1758.9,1758.8,8.974]
[1745519133505,0.2,1759.0,1758.8,14.65967001]
[1745519133709,0.2,1759.0,1758.8,8.974]
[1745519133894,0.2,1758.9,1758.8,8.974]
[1745519134292,5.68419553,1759.3,1758.8,14.65969479]
[1745519134293,0.2,1759.1,1758.8,14.65969479]
[1745519134472,0.2,1759.0,1758.8,14.65969479]
[1745519134804,0.2,1758.9,1758.8,14.65969479]
[1745519135967,0.2,1758.9,1758.8,3.0]
[1745519136320,0.7603,1759.2,1758.8,3.0]
[1745519136321,0.2,1759.2,1759.1,5.68472514]
[1745519136519,0.2,1759.4,1759.3,5.68407889]
[1745519136701,0.2,1759.4,1759.3,11.35907889]
[1745519136909,0.2,1759.4,1759.3,5.675]
[1745519137089,0.2,1759.2,1758.9,3.0]
[1745519137294,0.2,1759.1,1759.0,8.675]
[1745519139919,0.2,1759.2,1759.1,3.0]
[1745519140286,0.2,1759.1,1758.8,17.8037]
[1745519140614,5.68348741,1759.5,1758.8,25.73369479]
[1745519140615,0.2,1758.9,1758.8,25.73369479]
[1745519140817,0.2,1758.9,1758.8,31.40869479]
[1745519141833,0.2,1759.0,1758.8,31.40853454]
[1745519142185,0.2,1758.9,1758.8,31.40853454]
[1745519142482,6.44455268,1759.3,1758.7,3.0]
[1745519142483,0.2,1758.8,1758.7,3.0]
[1745519142686,0.2,1758.8,1758.7,8.676]
[1745519142888,0.2,1758.7,1758.6,17.049]
[1745519143116,0.2,1758.7,1758.6,22.725]
[1745519144142,5.68554752,1758.9,1758.4,8.68681412]
[1745519144143,0.2,1758.5,1758.4,8.68681412]
[1745519144420,0.2,1758.5,1758.4,31.41181412]
[1745519144726,0.2,1758.6,1758.5,8.68666477]
[1745519145820,0.2,1758.6,1758.5,3.0]
[1745519146421,0.2,1758.6,1758.5,8.676]
[1745519147930,0.2,1758.6,1758.5,14.36266477]
[1745519149532,0.2,1758.6,1758.5,3.0]
[1745519149732,0.2,1758.6,1758.5,8.677]
[1745519150154,0.2,1758.6,1758.5,14.36366477]
[1745519150934,1.04877565,1758.6,1758.5,14.36366477]
[1745519151830,0.73048478,1758.6,1758.5,14.36366477]
[1745519152635,0.53048478,1758.6,1758.5,18.0736091]
[1745519153249,0.53048478,1758.6,1758.5,18.0006091]
[1745519153404,0.2,1758.7,1758.6,5.6863414]
[1745519154255,0.2,1758.7,1758.5,14.29066477]
[1745519154408,0.2,1758.7,1758.6,5.604]
[1745519154607,0.2,1758.7,1758.6,8.604]
[1745519159447,0.2,1758.8,1758.6,21.06010598]
[1745519159766,5.68386764,1759.4,1759.1,3.0]
[1745519159903,6.44387398,1759.5,1759.2,5.604]
[1745519160104,7.08826138,1759.5,1759.2,5.604]
[1745519160345,5.68380098,1759.4,1759.2,5.604]
[1745519160726,5.68419551,1759.3,1759.0,0.7733]
[1745519160939,5.68450488,1759.2,1759.1,5.604]
[1745519163857,5.684402,1759.2,1759.1,5.604]
[1745519164062,7.08825154,1759.5,1759.1,11.28872514]
[1745519164362,1.4046874,1759.5,1759.3,5.68385861]
[1745519164531,0.7603,1759.5,1759.4,5.68375582]
[1745519164724,0.29630521,1760.0,1759.6,5.68301302]
[1745519164725,0.7603,1759.8,1759.6,5.68301302]
[1745519164921,0.7603,1759.8,1759.7,5.604]
[1745519165121,12.12367774,1760.1,1759.7,5.604]
[1745519165318,1.21236777,1760.0,1759.7,5.604]
[1745519165947,1.21236777,1760.0,1759.7,11.28673679]
[1745519166219,6.44197831,1760.1,1759.7,5.604]
[1745519166535,6.44197831,1760.1,1759.7,11.28675557]
[1745519166729,5.68127532,1760.2,1759.8,5.68227013]
[1745519166923,5.68127532,1760.2,1759.8,5.68231031]
[1745519167144,0.56812753,1760.1,1759.8,5.68225904]
[1745519167352,11.6584297,1760.3,1759.9,5.68213451]
[1745519167554,10.22973236,1760.4,1759.7,11.28665276]
[1745519167863,5.68131028,1760.2,1759.8,5.68225658]
[1745519169057,5.6816007,1760.1,1759.7,11.28656602]
[1745519169267,6.43499909,1760.0,1759.7,5.604]
[1745519169438,7.64666707,1760.0,1759.7,5.604]
[1745519169639,5.68216758,1759.9,1759.7,5.604]
[1745519169965,5.68238673,1759.9,1759.8,5.602]
[1745519174152,5.68265733,1759.8,1759.4,5.68369884]
[1745519174463,5.68265733,1759.8,1759.5,5.602]
[1745519174464,5.68265496,1759.8,1759.5,5.602]
[1745519174765,5.68230363,1759.9,1759.5,5.602]
[1745519174977,7.64668735,1760.0,1759.5,11.28519245]
[1745519175157,6.43501937,1760.0,1759.6,5.68290016]
[1745519175330,6.43501937,1760.0,1759.6,11.36583116]
[1745519175672,6.43501937,1760.0,1759.6,5.68290016]
[1745519175837,5.68152134,1760.1,1759.7,5.68251123]
[1745519176370,5.68185905,1760.0,1759.7,3.0]
[1745519176871,5.68152134,1760.1,1759.7,8.6827268]
[1745519177072,12.57497009,1760.1,1759.7,8.6827268]
[1745519177572,5.68182422,1760.0,1759.7,8.6827268]
[1745519177772,6.89323014,1760.1,1759.7,8.6827268]
[1745519178073,0.7542,1760.2,1759.9,5.68199007]
[1745519178287,6.8613609,1760.4,1760.0,5.602]
[1745519178443,6.44083358,1760.4,1760.0,11.2836344]
[1745519178642,10.22925268,1760.6,1760.1,5.68132037]
[1745519178944,5.6802084,1760.5,1760.1,5.68130576]
[1745519179163,6.44037669,1760.6,1760.2,5.68107106]
[1745519179367,12.04618629,1760.6,1760.2,5.68107106]
[1745519179534,5.67998266,1760.6,1760.2,5.68097356]
[1745519179737,5.67970419,1760.7,1760.2,5.68094096]
[1745519179932,5.67976033,1760.7,1760.3,5.68074517]
[1745519180199,5.67976033,1760.7,1760.4,5.601]
[1745519180363,6.32376636,1760.7,1760.4,5.601]
[1745519180570,5.68008598,1760.6,1760.4,5.601]
[1745519180735,6.32376636,1760.7,1760.4,5.601]
[1745519181275,12.00356529,1760.7,1760.4,5.601]
[1745519181573,5.67988824,1760.6,1760.4,5.601]
[1745519181773,6.8802537,1760.6,1760.4,5.601]
[1745519182174,6.88047667,1760.6,1760.4,5.601]
[1745519182353,5.68011121,1760.6,1760.4,5.601]
[1745519182551,11.3602866,1760.6,1760.4,5.601]
[1745519182774,5.68011121,1760.6,1760.4,5.601]
[1745519183145,5.67973403,1760.7,1760.4,5.601]
[1745519183476,5.67992883,1760.6,1760.4,5.601]
[1745519183839,5.67973403,1760.7,1760.4,5.601]
[1745519184075,5.67991316,1760.6,1760.4,5.601]
[1745519184736,6.32373743,1760.7,1760.2,17.044]
[1745519184737,5.68084985,1760.3,1760.2,17.044]
[1745519185554,5.68117259,1760.2,1760.1,5.459]
[1745519186179,5.68189088,1760.0,1759.6,6.43608795]
[1745519186400,5.68189088,1760.0,1759.5,28.62722935]
[1745519186401,5.68278538,1759.8,1759.5,17.043]
[1745519186672,5.68278538,1759.8,1759.7,5.459]
[1745519188953,5.68278538,1759.8,1759.5,17.043]
[1745519189155,5.68278538,1759.8,1759.7,5.46]
[1745519189759,5.68235449,1759.9,1759.7,5.46]
[1745519190283,5.68224836,1759.9,1759.7,5.46]
[1745519190469,5.68195407,1760.0,1759.7,5.46]
[1745519190667,5.68215056,1759.9,1759.7,5.46]
[1745519192787,5.68194635,1760.0,1759.7,5.46]
[1745519192968,5.68223963,1759.9,1759.7,5.46]
[1745519194989,5.6819251,1760.0,1759.7,5.46]
[1745519195216,5.68168655,1760.1,1759.7,11.76977695]
[1745519195368,5.68146968,1760.2,1759.8,5.68236639]
[1745519195694,11.36329306,1760.1,1759.8,1.74521433]
[1745519195866,5.6814983,1760.1,1759.8,1.74521433]
[1745519196499,11.36328582,1760.1,1759.8,1.74521433]
[1745519199217,5.68188251,1760.0,1759.8,1.74521433]
[1745519199916,5.6814983,1760.1,1759.8,1.74521433]
[1745519200824,5.6818261,1760.0,1759.8,1.74521433]
[1745519200979,5.6818261,1760.0,1759.7,6.08719]
[1745519201181,5.6814983,1760.1,1759.7,11.76978805]
[1745519201387,11.36326072,1760.1,1759.7,11.76978805]
[1745519201711,5.68191245,1760.0,1759.7,6.08719]
[1745519201894,5.68191245,1760.0,1759.7,3.62719]
[1745519202089,5.68218684,1759.9,1759.8,5.459]
[1745519206226,5.68214103,1759.9,1759.8,5.459]
[1745519210289,5.68214103,1759.9,1759.6,5.6830978]
[1745519210494,5.68278683,1759.7,1759.6,5.46]
[1745519211729,5.68261193,1759.8,1759.6,5.46]
[1745519212297,11.36531201,1759.8,1759.6,5.46]
[1745519212836,5.68278683,1759.7,1759.6,5.46]
[1745519214040,5.68261193,1759.8,1759.6,5.46]
[1745519215237,5.68231685,1759.9,1759.6,5.46]
[1745519215436,5.68198598,1760.0,1759.6,13.46876222]
[1745519215643,5.68246391,1759.8,1758.8,0.98256589]
[1745519215942,5.68468827,1759.2,1758.8,0.7547]
[1745519216126,5.68529682,1759.0,1758.8,0.7547]
[1745519216442,5.68569479,1758.8,1758.7,5.329]
[1745519217440,5.68537153,1758.9,1758.7,5.329]
[1745519217643,5.68569479,1758.8,1758.7,5.329]
[1745519225616,5.68666477,1758.5,1758.4,5.33]
[1745519226146,6.44696477,1758.5,1758.4,5.33]
[1745519227551,5.68645482,1758.6,1758.4,5.33]
[1745519227959,5.68666477,1758.5,1758.4,5.33]
[1745519228158,5.68645482,1758.6,1758.4,5.33]
[1745519228368,5.68556176,1758.9,1758.5,6.43701323]
[1745519228659,5.68539526,1758.9,1758.6,3.0]
[1745519229443,11.37101716,1758.9,1758.6,3.0]
[1745519229764,5.68550618,1758.9,1758.6,3.94370868]
[1745519230478,5.68526428,1759.0,1758.6,9.63001203]
[1745519230675,5.68443181,1759.2,1758.8,5.68538432]
[1745519230863,5.68427157,1759.3,1758.9,11.81058877]
[1745519231037,5.68359863,1759.5,1759.0,6.86597528]
[1745519231234,5.68328231,1759.6,1759.2,0.7944]
[1745519231471,5.68328231,1759.6,1759.3,5.331]
[1745519231776,9.47188124,1759.7,1759.3,11.01494146]
[1745519232073,9.47171321,1759.7,1759.3,11.01491206]
[1745519232233,9.47171321,1759.7,1759.4,1.10149121]
[1745519232439,3.78887599,1759.7,1759.4,12.46873889]
[1745519232666,3.78887599,1759.7,1759.5,0.7578]
[1745519233339,3.78887599,1759.7,1759.5,6.44116411]
[1745519233537,5.68226664,1759.9,1759.5,6.44116411]
[1745519233774,5.68226664,1759.9,1759.6,0.64411641]
[1745519233976,5.68226664,1759.9,1759.7,5.33]
[1745519234336,5.68196553,1760.0,1759.7,5.33]
[1745519234577,5.68225784,1759.9,1759.7,5.33]
[1745519234866,5.68184167,1760.0,1759.7,5.33]
[1745519236059,5.68216372,1759.9,1759.7,5.33]
[1745519236243,5.6823551,1759.9,1759.7,5.33]
[1745519236443,11.36480602,1759.9,1759.7,5.33]
[1745519236649,5.6823551,1759.9,1759.7,5.33]
[1745519238489,5.68208401,1760.0,1759.7,5.33]
[1745519238687,5.68166976,1760.1,1759.7,5.33]
[1745519238983,5.68194431,1760.0,1759.7,5.33]
[1745519239185,5.68218861,1759.9,1759.7,5.33]
[1745519239552,11.36465053,1759.9,1759.7,5.33]
[1745519239775,5.68218861,1759.9,1759.7,5.33]
[1745519239988,5.68246391,1759.8,1759.7,5.33]
[1745519240888,5.68218861,1759.9,1759.7,5.33]
[1745519241051,5.68246391,1759.8,1759.7,5.33]
[1745519241452,11.3645888,1759.9,1759.7,5.33]
[1745519241988,5.68246391,1759.8,1759.7,5.33]
[1745519247700,6.8189262,1759.8,1759.7,5.33]
[1745519247907,6.8189262,1759.8,1759.3,25.73086089]
[1745519247908,5.68278683,1759.7,1759.3,20.8041]
[1745519248110,5.68278683,1759.7,1759.6,5.296]
[1745519254518,8.68278683,1759.7,1759.6,5.296]
[1745519257219,5.68375582,1759.4,1759.3,17.047]
[1745519257392,5.68528427,1759.0,1758.9,5.296]
[1745519257710,5.68537153,1758.9,1758.8,6.1275]
[1745519259016,5.68537153,1758.9,1758.8,5.296]
[1745519267426,5.68528427,1759.0,1758.8,5.296]
[1745519267640,5.68492059,1759.1,1758.8,5.296]
[1745519268115,0.29642202,1759.2,1759.0,6.76548377]
[1745519268312,11.36796285,1759.4,1759.0,6.76548377]
[1745519268501,5.68395818,1759.4,1759.0,6.76548377]
[1745519268832,5.68395818,1759.4,1759.0,6.76539865]
[1745519269188,5.68421134,1759.3,1759.0,1.08053876]
[1745519270531,5.68459725,1759.2,1758.9,3.7812]
[1745519271591,5.68424634,1759.3,1758.9,9.46654783]
[1745519271914,5.68424634,1759.3,1759.0,5.68502117]
[1745519274649,5.68388767,1759.4,1759.0,5.68488563]
[1745519274810,5.98002519,1759.5,1759.1,5.68450783]
[1745519275011,11.66371918,1759.5,1759.2,5.192]
[1745519275318,5.9799667,1759.5,1759.3,0.8041]
[1745519275639,5.6832964,1759.6,1759.2,5.9961]
[1745519275843,5.6832964,1759.6,1759.2,7.16416078]
[1745519276251,5.68353635,1759.5,1759.2,7.16416078]
[1745519276440,5.68353635,1759.5,1759.2,5.9961]
[1745519277243,8.68353635,1759.5,1759.2,5.9961]
[1745519277886,8.68353635,1759.5,1759.2,11.68050033]
[1745519278356,3.0,1759.5,1759.2,11.68028526]
[1745519278564,3.0,1759.5,1759.3,5.6839155]
[1745519279455,3.0,1759.5,1759.2,11.68028526]
[1745519279755,6.44254981,1759.9,1759.3,9.50650748]
[1745519279955,5.97831557,1760.0,1759.6,5.68298656]
[1745519280119,0.29638542,1760.0,1759.7,5.192]
[1745519280323,5.68246391,1759.8,1759.7,5.192]
[1745519280954,5.68374543,1759.5,1759.4,5.192]
[1745519281173,6.25211997,1759.5,1759.4,5.192]
[1745519281649,5.6845624,1759.2,1759.1,5.192]
[1745519281854,5.684402,1759.2,1759.1,5.192]
[1745519283265,5.68377019,1759.4,1758.9,0.7511]
[1745519283442,5.68504832,1759.0,1758.9,5.192]
[1745519283770,5.68578844,1758.8,1758.6,22.24]
[1745519284164,5.68558836,1758.9,1758.6,22.24]
[1745519284335,6.4455465,1759.0,1758.6,27.92631317]
[1745519284536,12.13086022,1759.0,1758.6,27.92631317]
[1745519284750,6.4455465,1759.0,1758.6,27.92631317]
[1745519284947,6.4455465,1759.0,1758.6,27.92619082]
[1745519285137,5.68484312,1759.1,1758.7,5.68598993]
[1745519285336,6.44481548,1759.2,1758.9,5.68514852]
[1745519285337,0.7603,1759.2,1758.9,5.68514852]
[1745519285565,5.68359767,1759.5,1759.1,5.68459094]
[1745519285771,0.31850915,1759.4,1759.1,0.8108]
[1745519285943,6.00237914,1759.4,1759.1,0.8108]
[1745519286267,0.31850915,1759.4,1759.1,6.49541163]
[1745519286431,6.00219412,1759.5,1759.1,8.02463352]
[1745519286632,6.00219412,1759.5,1759.1,6.49541163]
[1745519287034,0.31850915,1759.5,1759.1,6.49541163]
[1745519287250,0.31850915,1759.5,1759.2,5.68428987]
[1745519287452,11.68584763,1759.5,1759.1,6.49541163]
[1745519287679,6.00211733,1759.5,1759.1,6.49541163]
[1745519287839,11.68583349,1759.5,1759.1,6.49541163]
[1745519288038,6.00211733,1759.5,1759.1,6.49541163]
[1745519288272,6.00211733,1759.5,1759.1,13.21046237]
[1745519288447,6.00211733,1759.5,1759.2,5.6843444]
[1745519288655,6.00211733,1759.5,1759.1,7.5258555]
[1745519289244,5.68375672,1759.4,1759.1,7.5258555]
[1745519289584,5.68375672,1759.4,1759.1,0.8108]
[1745519289879,5.68428134,1759.3,1759.0,5.192]
[1745519290085,6.44366923,1759.6,1758.9,0.7787]
[1745519290293,5.68483875,1759.1,1759.0,5.192]
[1745519291276,6.444881,1759.2,1759.0,5.192]
[1745519291653,5.97982863,1759.5,1759.0,12.17654594]
[1745519291654,5.68389646,1759.4,1759.0,12.17654594]
[1745519291856,5.68389646,1759.4,1759.0,11.65734594]
[1745519292063,5.68431492,1759.3,1759.0,5.9726]
[1745519292475,5.68444635,1759.2,1759.0,5.9726]
[1745519292697,5.68459787,1759.2,1759.0,5.192]
[1745519293169,5.68421663,1759.3,1759.0,5.192]
[1745519293482,11.68661482,1759.4,1759.0,10.87703675]
[1745519293685,6.00260729,1759.4,1759.0,11.96455062]
[1745519293852,11.68660764,1759.4,1759.0,11.96455062]
[1745519294178,6.00283794,1759.3,1759.0,11.96455062]
[1745519294343,0.31866405,1759.3,1759.0,11.96455062]
[1745519294547,0.31866405,1759.3,1759.2,5.684402]
[1745519294755,0.31866405,1759.4,1759.1,13.37219439]
[1745519295046,0.31866405,1759.4,1759.2,5.6842632]
[1745519295550,6.00253007,1759.4,1759.1,10.68763217]
[1745519295780,5.68343884,1759.5,1759.1,10.68763217]
[1745519296148,5.68343884,1759.5,1759.1,10.68746885]
[1745519296649,11.36715056,1759.5,1759.1,10.68746885]
[1745519297261,5.68377503,1759.4,1759.1,10.68746885]
[1745519297461,5.68343884,1759.5,1759.1,10.68746885]
[1745519297786,11.36710593,1759.5,1759.1,10.68746885]
[1745519297985,5.68343884,1759.5,1759.1,10.68746885]
[1745519298149,11.36710532,1759.5,1759.1,10.68746885]
[1745519298686,5.68343884,1759.5,1759.1,10.68746885]
[1745519299685,11.36659159,1759.6,1759.2,6.75302193]
[1745519299980,5.68324237,1759.6,1759.2,6.7529886]
[1745519300185,5.68324237,1759.6,1759.3,5.68406384]
[1745519300431,0.3188524,1759.5,1759.3,5.68406384]
[1745519300586,0.3188524,1759.5,1759.2,6.7529886]
[1745519300885,6.00229626,1759.5,1759.2,6.7529886]
[1745519301287,5.68344386,1759.5,1759.2,6.7529886]
[1745519301581,11.36660477,1759.6,1759.2,6.7529886]
[1745519301786,5.68324237,1759.6,1759.2,6.7529886]
[1745519302090,11.36658622,1759.6,1759.2,6.7529886]
[1745519302394,5.68344239,1759.5,1759.2,6.7529886]
[1745519302763,5.68324237,1759.6,1759.2,6.7529886]
[1745519302964,5.68324237,1759.6,1759.2,12.43720674]
[1745519303164,5.68324237,1759.6,1759.3,6.92779845]
[1745519303365,5.68324237,1759.6,1759.3,1.24372067]
[1745519303575,5.68324237,1759.6,1759.2,6.75296502]
[1745519303779,0.31880052,1759.5,1759.2,6.75294167]
[1745519304687,5.68344173,1759.5,1759.2,6.75294167]
[1745519305689,5.68344173,1759.5,1759.1,5.00295506]
[1745519305878,5.68389847,1759.4,1759.1,3.8065]
[1745519306077,5.68389847,1759.4,1759.1,9.49119734]
[1745519306889,5.68355209,1759.5,1759.1,9.49119734]
[1745519307094,0.2963506,1759.7,1759.3,5.68407889]
[1745519307294,0.2963506,1759.7,1759.4,11.43884646]
[1745519307473,5.68266117,1759.8,1759.4,17.90147281]
[1745519307672,5.68266117,1759.8,1759.4,12.21784646]
[1745519308091,11.36537714,1759.8,1759.4,12.21784646]
[1745519309002,5.68246391,1759.8,1759.4,5.187]
[1745519309184,5.68343279,1759.5,1759.4,5.187]
[1745519310090,6.00208618,1759.5,1759.4,5.187]
[1745519311699,9.00208618,1759.5,1759.4,5.187]
[1745519314499,3.31865339,1759.5,1759.4,5.187]
[1745519315116,9.00208618,1759.5,1759.4,5.187]
[1745519315431,8.68343279,1759.5,1759.4,5.187]
[1745519316372,5.68343279,1759.5,1759.4,5.187]
[1745519316907,6.82009111,1759.5,1759.4,5.187]
[1745519317082,7.13902256,1759.5,1759.4,5.187]
[1745519317281,7.89932256,1759.5,1759.4,5.187]
[1745519317710,5.6847816,1759.1,1759.0,5.187]
[1745519318205,1.89695832,1759.5,1759.0,5.187]
[1745519318406,5.68431413,1759.3,1759.0,5.187]
[1745519318820,11.36863073,1759.3,1759.0,5.187]
[1745519318978,5.68459129,1759.2,1759.0,5.187]
[1745519319782,11.36924831,1759.2,1759.0,5.187]
[1745519321017,5.68459129,1759.2,1759.0,5.187]
[1745519322028,5.68420016,1759.3,1759.0,5.187]
[1745519322182,5.68444242,1759.2,1759.0,5.187]
[1745519322688,5.68472514,1759.1,1759.0,5.187]
[1745519323329,5.68444242,1759.2,1759.0,5.187]
[1745519323482,5.68426367,1759.3,1759.0,5.187]
[1745519323687,5.68455321,1759.2,1759.0,5.187]
[1745519324414,11.36918563,1759.2,1759.0,5.187]
[1745519324603,5.68455321,1759.2,1759.0,5.187]
[1745519324813,11.36926901,1759.2,1759.0,5.187]
[1745519325617,7.87675353,1759.5,1759.0,5.187]
[1745519325783,5.68456458,1759.2,1759.0,5.187]
[1745519326720,5.68392795,1759.4,1759.0,5.187]
[1745519327019,5.68411072,1759.3,1759.0,10.87182586]
[1745519328026,0.29636193,1759.5,1759.1,3.7663]
[1745519328232,0.29636193,1759.5,1759.4,9.45005582]